bitfinex-derivatives/quotes_BNBF0:USTF0_20250710
["timestamp","ask_amount","ask_price","bid_price","bid_amount"]
[1752161000656,1.67107475,668.25,667.59,1.637]
[1752161001755,1.67107475,668.26,667.59,1.637]
[1752161003457,2.23261176,668.42,667.59,1.637]
[1752161003458,1.67107475,668.25,667.59,1.637]
[1752161004255,1.67107475,668.24,667.59,1.637]
[1752161004454,1.67107475,668.25,667.59,1.637]
[1752161005054,1.67107475,668.24,667.59,1.637]
[1752161005654,1.67107475,668.23,667.59,1.637]
[1752161007159,3.34891764,668.57,667.59,1.637]
[1752161007160,1.67107475,668.22,667.59,1.637]
[1752161007460,1.67107475,668.21,667.59,1.637]
[1752161008058,1.67107475,668.19,667.59,1.637]
[1752161008459,1.67107475,668.2,667.59,1.637]
[1752161008955,1.67107475,668.18,667.59,1.637]
[1752161009755,1.67107475,668.16,667.59,1.637]
[1752161011657,1.67107475,668.17,667.59,1.637]
[1752161012256,1.67107475,668.16,667.59,1.637]
[1752161013059,1.67107475,668.17,667.59,1.637]
[1752161016164,1.67107475,668.16,667.59,1.637]
[1752161016962,1.67107475,668.17,667.59,1.637]
[1752161017262,1.67107475,668.16,667.59,1.637]
[1752161017468,1.67107475,668.17,667.59,1.637]
[1752161017663,1.67107475,668.15,667.59,1.637]
[1752161017863,1.67107475,668.13,667.59,1.637]
[1752161018364,1.67107475,668.23,667.59,1.637]
[1752161019165,1.67107475,668.24,667.59,1.637]
[1752161022766,1.67020067,668.24,667.59,1.637]
[1752161023265,1.67020067,668.23,667.59,1.637]
[1752161023869,1.67020067,668.24,667.59,1.637]
[1752161024270,1.67020067,668.23,667.59,1.637]
[1752161026368,1.67020067,668.24,667.59,1.637]
[1752161026868,1.67020067,668.23,667.59,1.637]
[1752161027069,1.67020067,668.14,667.59,1.637]
[1752161027369,1.67020067,668.12,667.59,1.637]
[1752161027769,1.67020067,668.11,667.59,1.637]
[1752161027969,1.67020067,668.12,667.59,1.637]
[1752161029475,1.67020067,668.13,667.59,1.637]
[1752161034078,1.67020067,668.14,667.59,1.637]
[1752161035076,2.23261176,668.29,667.59,1.637]
[1752161035280,0.26030661,669.02,667.59,1.637]
[1752161035477,1.26959722,669.01,667.59,1.637]
[1752161035778,1.26959722,669.0,667.59,1.637]
[1752161035976,1.26959722,668.99,667.59,1.637]
[1752161036175,1.26959722,668.98,667.59,1.637]
[1752161036375,1.26959722,668.97,667.59,1.637]
[1752161036575,1.26959722,668.96,667.59,1.637]
[1752161036777,1.26959722,668.95,667.59,1.637]
[1752161036980,1.26959722,668.94,667.59,1.637]
[1752161037278,1.26959722,668.93,667.59,1.637]
[1752161037481,1.26959722,668.92,667.58,0.26041179]
[1752161037781,1.26959722,668.91,667.58,0.26041179]
[1752161037978,1.26959722,668.9,667.58,0.26041179]
[1752161038182,2.22783529,668.28,667.58,0.26041179]
[1752161038382,1.67087646,668.14,667.58,0.26041179]
[1752161038582,1.67087646,668.13,667.58,0.26041179]
[1752161039478,1.67087646,668.12,667.58,0.26041179]
[1752161039782,1.67087646,668.13,667.58,0.26041179]
[1752161040983,1.67087646,668.13,667.59,1.934]
[1752161041282,1.67087646,668.12,667.59,1.934]
[1752161042683,1.67087646,668.11,667.59,1.934]
[1752161042883,1.67087646,668.1,667.59,1.934]
[1752161043085,1.67087646,668.13,667.59,1.934]
[1752161043482,1.67087646,668.12,667.59,1.934]
[1752161044786,1.67087646,668.11,667.59,1.934]
[1752161046987,1.67087646,668.1,667.59,1.934]
[1752161047384,1.67087646,668.13,667.59,1.934]
[1752161048187,1.67087646,668.12,667.59,1.934]
[1752161049590,1.67087646,668.11,667.59,1.934]
[1752161052392,1.67087646,668.1,667.59,1.934]
[1752161053189,1.67087646,668.18,667.59,1.934]
[1752161054392,1.67087646,668.17,667.59,1.934]
[1752161055289,1.67087646,668.13,667.59,1.934]
[1752161056797,1.67087646,668.12,667.59,1.934]
[1752161061000,1.67087646,668.13,667.59,1.934]
[1752161061401,1.67087646,668.11,667.59,1.934]
[1752161063201,1.67087646,668.07,667.59,1.934]
[1752161064296,1.67087646,668.06,667.59,1.934]
[1752161064503,1.67087646,668.07,667.59,1.934]
[1752161066302,1.67087646,668.04,667.59,1.934]
[1752161067809,1.67087646,668.03,667.59,1.934]
[1752161069505,1.67087646,668.04,667.59,1.934]
[1752161070205,1.67087646,668.03,667.59,1.934]
[1752161070805,1.67087646,668.0,667.59,1.934]
[1752161071709,1.67087646,668.01,667.59,1.934]
[1752161072806,1.67087646,667.99,667.59,1.934]
[1752161076007,1.67087646,668.0,667.58,0.26041179]
[1752161076207,1.67087646,667.99,667.58,0.26041179]
[1752161076406,1.67087646,668.0,667.58,0.26041179]
[1752161076905,1.67087646,667.98,667.58,0.26041179]
[1752161078111,1.67087646,667.99,667.58,0.26041179]
[1752161078310,1.67087646,668.09,667.59,1.603]
[1752161081513,1.67087646,668.23,667.59,1.603]
[1752161081707,1.67087646,668.25,667.59,1.603]
[1752161083411,1.67087646,668.26,667.59,1.603]
[1752161084710,1.67087646,668.25,667.59,1.603]
[1752161084908,1.67087646,668.22,667.59,1.603]
[1752161085111,1.67087646,668.21,667.64,0.26045857]
[1752161085512,1.67087646,668.22,667.64,0.26045857]
[1752161087013,1.67087646,668.21,667.64,0.26045857]
[1752161088010,1.67087646,668.19,667.64,0.26045857]
[1752161088313,1.67087646,668.18,667.64,0.26045857]
[1752161088514,1.67087646,668.14,667.64,0.26045857]
[1752161092720,1.67087646,668.16,667.64,0.26045857]
[1752161095215,1.67087646,668.18,667.64,0.26045857]
[1752161096119,1.67087646,668.19,667.64,0.26045857]
[1752161101525,1.67087646,668.2,667.64,0.26045857]
[1752161104323,1.67087646,668.19,667.64,0.26045857]
[1752161104525,1.67087646,668.2,667.64,0.26045857]
[1752161107422,1.67087646,668.21,667.64,0.26045857]
[1752161108424,1.67087646,668.2,667.64,0.26045857]
[1752161108632,1.67087646,668.21,667.64,0.26045857]
[1752161109725,1.67087646,668.2,667.64,0.26045857]
[1752161110528,1.67087646,668.21,667.64,0.26045857]
[1752161112525,1.67087646,668.2,667.64,0.26045857]
[1752161112730,1.67087646,668.21,667.64,0.26045857]
[1752161114426,1.67087646,668.2,667.64,0.26045857]
[1752161116529,1.67087646,668.21,667.64,0.26045857]
[1752161118333,1.67087646,668.2,667.64,0.26045857]
[1752161119934,1.67087646,668.21,667.64,0.26045857]
[1752161120333,1.67087646,668.2,667.64,0.26045857]
[1752161122533,1.67087646,668.19,667.64,0.26045857]
[1752161123333,1.67087646,668.19,667.65,2.143]
[1752161124435,1.67087646,668.18,667.65,2.143]
[1752161125736,1.67087646,668.17,667.65,2.143]
[1752161126033,1.67087646,668.16,667.65,2.143]
[1752161126438,1.67087646,668.15,667.65,2.143]
[1752161127537,1.67087646,668.14,667.65,2.143]
[1752161127937,1.67087646,668.15,667.65,2.143]
[1752161128437,1.67087646,668.14,667.65,2.143]
[1752161129737,1.67087646,668.16,667.65,2.143]
[1752161130835,1.67087646,668.15,667.65,2.143]
[1752161131741,1.67087646,668.16,667.65,2.143]
[1752161132439,1.67087646,668.15,667.65,2.143]
[1752161135246,1.67087646,668.14,667.65,2.143]
[1752161136447,1.67087646,668.13,667.65,2.143]
[1752161138450,2.22783529,668.28,667.65,2.143]
[1752161138451,1.67087646,668.12,667.65,2.143]
[1752161139846,1.67087646,668.1,667.65,2.143]
[1752161140347,1.67087646,668.09,667.65,2.143]
[1752161141652,1.67087646,668.1,667.65,2.143]
[1752161142452,1.67087646,668.09,667.65,2.143]
[1752161147155,1.67087646,668.08,667.65,2.143]
[1752161149155,1.67087646,668.07,667.65,2.143]
[1752161151762,1.67087646,668.08,667.65,2.143]
[1752161153861,1.67087646,668.07,667.65,2.143]
[1752161157860,1.67087646,668.08,667.65,2.143]
[1752161159260,1.67087646,668.09,667.65,2.143]
[1752161159762,1.67087646,668.06,667.65,2.143]
[1752161161573,1.67087646,668.04,667.65,2.143]
[1752161162374,1.67087646,668.04,667.64,0.26045857]
[1752161163572,1.67087646,668.05,667.64,0.26045857]
[1752161163975,1.67087646,668.06,667.64,0.26045857]
[1752161164775,1.67087646,668.07,667.64,0.26045857]
[1752161165075,1.67087646,668.06,667.64,0.26045857]
[1752161165673,1.67087646,668.06,667.65,2.391]
[1752161166278,1.67087646,668.05,667.65,2.391]
[1752161166578,1.67087646,668.04,667.65,2.391]
[1752161166777,1.67087646,668.03,667.65,2.391]
[1752161167473,1.67087646,668.02,667.65,2.391]
[1752161167673,1.67087646,668.01,667.65,2.391]
[1752161167976,1.67087646,668.03,667.65,2.391]
[1752161173282,1.67087646,668.07,667.65,2.391]
[1752161182982,1.67087646,668.04,667.65,2.391]
[1752161186589,1.67087646,668.03,667.65,2.391]
[1752161193589,1.67087646,668.05,667.65,2.391]
[1752161193795,0.26046247,668.49,667.65,2.391]
[1752161193796,1.67087646,668.07,667.65,2.391]
[1752161193997,1.67087646,668.11,667.65,2.391]
[1752161194189,1.67087646,668.14,667.65,2.391]
[1752161194390,1.67087646,668.17,667.65,2.391]
[1752161195494,1.67087646,668.15,667.65,2.391]
[1752161196096,1.67087646,668.16,667.65,2.391]
[1752161196293,1.67087646,668.15,667.65,2.391]
[1752161198098,1.67087646,668.16,667.65,2.391]
[1752161201098,1.67087646,668.17,667.65,2.391]
[1752161203301,1.67087646,668.18,667.65,2.391]
[1752161204306,1.67087646,668.17,667.65,2.391]
[1752161205306,1.67087646,668.18,667.65,2.391]
[1752161205806,0.26045272,668.58,667.65,2.391]
[1752161205807,1.67087646,668.17,667.65,2.391]
[1752161208506,1.67087646,668.18,667.65,2.391]
[1752161210705,1.67087646,668.18,667.64,0.26045857]
[1752161212812,2.22783529,668.3,667.64,0.26045857]
[1752161212813,1.67087646,668.19,667.64,0.26045857]
[1752161214122,1.67087646,668.19,667.65,2.373]
[1752161216316,1.67087646,668.2,667.65,2.373]
[1752161216713,1.67087646,668.21,667.65,2.373]
[1752161218720,1.67087646,668.23,667.65,2.373]
[1752161219216,1.67087646,668.3,667.65,4.60957181]
[1752161219727,1.67087646,668.32,667.66,2.23657181]
[1752161221129,1.67087646,668.33,667.67,2.23657181]
[1752161221425,1.67087646,668.35,667.65,4.60957181]
[1752161222222,1.67087646,668.36,667.65,2.373]
[1752161223622,1.67087646,668.37,667.65,2.373]
[1752161224125,1.67087646,668.45,667.69,2.23657181]
[1752161224321,1.67087646,668.44,667.71,2.23657181]
[1752161224625,0.2603777,668.84,667.74,2.23657181]
[1752161224626,1.67087646,668.47,667.74,2.23657181]
[1752161225121,1.27239601,668.6,667.72,2.23657181]
[1752161225122,1.67087646,668.48,667.72,2.23657181]
[1752161226123,1.67087646,668.5,667.71,2.23657181]
[1752161227025,1.67087646,668.52,667.73,2.23657181]
[1752161227222,1.67087646,668.53,667.71,2.23657181]
[1752161228127,1.67087646,668.54,667.7,2.23657181]
[1752161228830,1.67087646,668.53,667.72,2.23657181]
[1752161229126,1.67087646,668.53,667.71,2.23657181]
[1752161229930,1.67087646,668.54,667.69,2.23657181]
[1752161230230,1.67087646,668.55,667.68,2.23657181]
[1752161231024,1.67087646,668.54,667.68,2.23657181]
[1752161231230,1.67087646,668.55,667.67,2.23657181]
[1752161231425,1.67087646,668.54,667.69,2.23657181]
[1752161232127,1.67087646,668.55,667.68,2.23657181]
[1752161233031,1.67087646,668.66,667.75,2.23657181]
[1752161233327,0.2603777,668.84,667.73,2.23657181]
[1752161233328,1.67087646,668.67,667.73,2.23657181]
[1752161233727,1.67087646,668.68,667.73,2.23657181]
[1752161234128,1.67087646,668.68,667.72,2.23657181]
[1752161235330,1.67087646,668.72,667.64,0.26045857]
[1752161236031,1.67087646,668.72,667.65,2.018]
[1752161236230,1.67087646,668.73,667.65,2.018]
[1752161238434,1.67087646,668.74,667.65,2.018]
[1752161238639,1.67087646,668.73,667.65,2.018]
[1752161239139,1.67087646,668.72,667.65,2.018]
[1752161239536,1.67087646,668.73,667.65,2.018]
[1752161242342,1.67087646,668.71,667.65,2.018]
[1752161242742,1.67087646,668.67,667.65,2.018]
[1752161246842,2.22783529,668.83,667.65,2.018]
[1752161246843,1.67087646,668.68,667.65,2.018]
[1752161248148,1.67087646,668.68,667.64,0.26045857]
[1752161249249,1.67087646,668.69,667.64,0.26045857]
[1752161251748,1.67087646,668.69,667.65,2.026]
[1752161252249,1.67087646,668.68,667.65,2.026]
[1752161254352,1.67087646,668.67,667.65,2.026]
[1752161255049,1.67087646,668.65,667.65,2.026]
[1752161256151,1.67087646,668.64,667.65,2.026]
[1752161257051,1.67087646,668.65,667.65,2.026]
[1752161259157,1.67087646,668.63,667.65,2.026]
[1752161260654,1.67087646,668.62,667.65,2.026]
[1752161262358,1.67087646,668.61,667.65,4.26257181]
[1752161263156,1.67087646,668.61,667.66,2.23657181]
[1752161263560,1.67087646,668.6,667.67,2.23657181]
[1752161264061,1.67087646,668.59,667.68,2.23657181]
[1752161265162,1.67087646,668.59,667.69,2.23657181]
[1752161266861,1.67087646,668.59,667.68,2.23657181]
[1752161267057,1.67087646,668.59,667.69,2.23657181]
[1752161267462,1.67087646,668.6,667.67,2.23657181]
[1752161268159,1.67087646,668.59,667.7,2.23657181]
[1752161268659,1.67087646,668.59,667.65,2.026]
[1752161268660,1.67087646,668.59,667.69,2.23657181]
[1752161268859,1.67087646,668.6,667.67,2.23657181]
[1752161269160,1.67087646,668.6,667.68,2.23657181]
[1752161269362,1.67087646,668.6,667.67,2.23657181]
[1752161270369,1.67087646,668.6,667.68,2.23657181]
[1752161270969,1.67087646,668.6,667.67,2.23657181]
[1752161271170,1.67087646,668.6,667.68,2.23657181]
[1752161271370,1.67087646,668.6,667.69,2.23657181]
[1752161272169,1.67087646,668.6,667.7,2.23657181]
[1752161272365,1.67087646,668.6,667.65,2.026]
[1752161272366,1.67087646,668.6,667.69,2.23657181]
[1752161273170,1.67087646,668.59,667.71,2.23657181]
[1752161273369,1.67087646,668.64,667.76,2.23657181]
[1752161274171,1.67087646,668.64,667.77,2.23657181]
[1752161274467,1.67087646,668.65,667.74,2.23657181]
[1752161275272,1.67087646,668.65,667.65,2.026]
[1752161275273,1.67087646,668.64,667.76,2.23657181]
[1752161276067,1.67087646,668.64,667.77,2.23657181]
[1752161276270,1.67087646,668.65,667.78,2.23657181]
[1752161276566,1.67087646,668.64,667.79,2.23657181]
[1752161277272,1.67087646,668.63,667.8,2.23657181]
[1752161277772,1.67087646,668.63,667.79,2.23657181]
[1752161278073,1.67087646,668.62,667.81,2.23657181]
[1752161278673,1.67087646,668.62,667.82,2.23657181]
[1752161278873,1.67087646,668.61,667.82,2.23657181]
[1752161279171,5.56958823,669.53,667.84,2.23657181]
[1752161279172,1.67087646,668.6,667.84,2.23657181]
[1752161281078,1.67087646,668.6,667.85,2.23657181]
[1752161281377,1.67087646,668.59,667.85,2.23657181]
[1752161282276,1.67087646,668.58,667.86,2.23657181]
[1752161282480,1.67087646,668.59,667.85,2.23657181]
[1752161283076,1.67087646,668.58,667.86,2.23657181]
[1752161284181,1.67087646,668.57,667.87,2.23657181]
[1752161284381,1.67087646,668.56,667.89,2.23657181]
[1752161284682,1.67087646,668.56,667.88,2.23657181]
[1752161286083,1.67087646,668.56,667.89,2.23657181]
[1752161287181,1.67087646,668.55,667.89,2.23657181]
[1752161287582,1.67087646,668.55,667.9,2.23657181]
[1752161288481,1.67087646,668.56,667.89,2.23657181]
[1752161289078,1.67087646,668.55,667.89,2.23657181]
[1752161289983,1.67087646,668.55,667.9,1.864]
[1752161290178,1.67087646,668.55,667.9,4.10057181]
[1752161292483,1.67087646,668.54,667.91,2.23657181]
[1752161294586,1.67087646,668.54,667.92,2.23657181]
[1752161295388,1.67087646,668.54,667.93,2.23657181]
[1752161295882,1.67087646,668.53,667.93,2.23657181]
[1752161296587,1.67087646,668.62,667.9,1.864]
[1752161296789,1.67087646,668.71,667.9,1.864]
[1752161298090,1.67087646,668.72,667.9,1.864]
[1752161299790,1.67087646,668.68,667.91,2.23657181]
[1752161300289,1.67087646,668.67,667.9,4.10057181]
[1752161301186,1.67087646,668.68,667.9,4.10057181]
[1752161301788,1.67087646,668.67,667.9,4.10057181]
[1752161301989,1.67087646,668.68,667.9,4.10057181]
[1752161303187,1.67087646,668.68,667.9,1.864]
[1752161304091,1.67087646,668.69,667.9,1.864]
[1752161304487,1.67087646,668.68,667.9,1.864]
[1752161304686,1.67087646,668.69,667.9,1.864]
[1752161306595,1.67087646,668.66,667.95,2.23657181]
[1752161306995,1.67087646,668.66,667.96,2.23657181]
[1752161307595,1.67087646,668.67,667.96,2.23657181]
[1752161307994,1.67087646,668.66,667.98,2.23657181]
[1752161309596,1.67087646,668.66,667.99,2.23657181]
[1752161310199,2.22783529,668.79,667.99,2.23657181]
[1752161310397,1.67504288,668.66,667.99,2.23657181]
[1752161310797,1.67504288,668.66,668.0,2.23657181]
[1752161313095,1.67504288,668.67,667.96,2.23657181]
[1752161314598,1.67504288,668.67,667.98,2.23657181]
[1752161315595,1.67504288,668.67,667.99,2.631]
[1752161316898,1.67504288,668.67,667.99,4.86757181]
[1752161317099,1.67504288,668.67,667.99,2.631]
[1752161319800,1.67504288,668.67,667.99,4.86757181]
[1752161320001,1.67504288,668.65,668.03,2.23657181]
[1752161321302,1.67504288,668.66,668.0,2.23657181]
[1752161322303,1.67504288,668.66,668.01,2.23657181]
[1752161324105,1.67504288,668.65,668.01,2.23657181]
[1752161326405,1.67504288,668.67,667.99,2.631]
[1752161327802,1.67504288,668.72,667.99,2.631]
[1752161328102,1.67504288,668.71,667.99,2.631]
[1752161332112,1.67504288,668.7,667.99,2.631]
[1752161336215,1.67504288,668.69,667.99,2.631]
[1752161337816,1.67504288,668.65,667.99,4.86757181]
[1752161340320,1.67504288,668.66,667.99,2.631]
[1752161341920,2.22783529,668.82,667.99,2.631]
[1752161342120,1.67643455,668.66,667.99,2.631]
[1752161343521,1.67643455,668.65,667.99,2.631]
[1752161344725,1.67643455,668.64,668.0,2.23657181]
[1752161345122,1.67643455,668.64,667.99,4.86757181]
[1752161346125,1.67643455,668.64,668.0,2.23657181]
[1752161346722,1.67643455,668.64,667.99,4.86757181]
[1752161347623,1.67643455,668.64,667.99,2.631]
[1752161348427,1.67643455,668.63,667.99,2.631]
[1752161350025,1.67643455,668.62,667.99,4.86757181]
[1752161351129,1.67643455,668.62,668.0,2.23657181]
[1752161351330,1.67643455,668.61,668.01,2.23657181]
[1752161353125,1.67643455,668.6,668.02,2.23657181]
[1752161353529,1.67643455,668.61,668.0,2.23657181]
[1752161354130,1.67643455,668.6,668.01,2.23657181]
[1752161355329,1.67643455,668.59,668.02,2.23657181]
[1752161356228,1.67643455,668.58,668.03,2.23657181]
[1752161357331,1.67643455,668.58,668.04,2.23657181]
[1752161359530,1.67643455,668.59,668.01,2.23657181]
[1752161359733,1.67643455,668.59,668.05,1.691]
[1752161361134,3.34175293,668.88,668.05,1.691]
[1752161361135,1.67643455,668.61,668.05,1.691]
[1752161362232,1.67643455,668.58,668.05,1.691]
[1752161362432,1.67643455,668.59,668.05,1.691]
[1752161363734,1.67643455,668.58,668.05,1.691]
[1752161364140,1.67643455,668.57,668.05,1.691]
[1752161365343,1.67643455,668.56,668.05,1.691]
[1752161365637,1.67643455,668.54,668.05,1.691]
[1752161366542,1.67643455,668.55,668.05,1.691]
[1752161370342,1.67643455,668.54,668.05,1.691]
[1752161371343,1.67643455,668.55,668.05,1.691]
[1752161372348,1.67643455,668.56,668.05,1.691]
[1752161374350,1.67643455,668.55,668.05,1.691]
[1752161374554,1.67643455,668.56,668.05,1.691]
[1752161376149,0.26030077,669.0,668.05,1.691]
[1752161376150,1.67643455,668.52,668.05,1.691]
[1752161378553,1.67643455,668.53,668.05,1.691]
[1752161381554,0.26030077,669.0,668.05,1.691]
[1752161381555,1.67643455,668.52,668.05,1.691]
[1752161382455,1.67643455,668.53,668.05,1.691]
[1752161386056,1.67643455,668.52,668.05,1.691]
[1752161389261,1.67643455,668.56,668.05,1.691]
[1752161391364,1.67643455,668.58,668.05,1.691]
[1752161394368,1.67643455,668.6,668.05,1.691]
[1752161399170,1.67643455,668.59,668.05,1.691]
[1752161401271,1.67643455,668.61,668.05,1.691]
[1752161404179,1.67643455,668.63,668.05,1.691]
[1752161404378,1.67643455,668.62,668.05,1.691]
[1752161408276,1.67643455,668.61,668.05,1.691]
[1752161408475,1.67643455,668.57,668.05,1.691]
[1752161408979,1.67643455,668.58,668.05,1.691]
[1752161413581,1.67643455,668.57,668.05,1.691]
[1752161417884,1.67643455,668.57,667.93,2.23657181]
[1752161418384,1.67643455,668.56,667.94,2.23657181]
[1752161418585,1.67643455,668.55,667.96,2.23657181]
[1752161418881,1.67643455,668.54,667.99,2.23657181]
[1752161419579,1.67643455,668.54,668.0,2.23657181]
[1752161420284,1.67643455,668.53,667.99,2.23657181]
[1752161420580,1.67643455,668.53,668.0,2.23657181]
[1752161420784,1.67643455,668.53,668.0,4.78657181]
[1752161420983,1.67643455,668.52,668.03,2.23657181]
[1752161424086,1.67643455,668.54,668.0,2.55]
[1752161425682,1.67643455,668.55,668.0,2.55]
[1752161425986,1.67643455,668.57,668.0,2.55]
[1752161426785,1.67643455,668.56,668.0,2.55]
[1752161427081,1.67643455,668.54,668.0,2.55]
[1752161427682,1.67643455,668.53,668.0,2.55]
[1752161427882,1.67643455,668.54,668.0,2.55]
[1752161428082,1.67643455,668.55,668.0,2.55]
[1752161429583,1.67643455,668.54,668.0,2.55]
[1752161429881,1.67643455,668.54,668.01,2.23657181]
[1752161430086,1.67643455,668.55,668.0,2.55]
[1752161430783,1.67643455,668.56,668.0,2.55]
[1752161430981,1.67643455,668.55,668.0,2.55]
[1752161431986,1.67643455,668.54,668.01,2.23657181]
[1752161432187,1.67643455,668.54,668.0,4.78657181]
[1752161432486,1.67643455,668.55,668.0,2.55]
[1752161433986,1.67643455,668.57,668.0,2.55]
[1752161434984,1.67643455,668.6,668.0,2.55]
[1752161436288,1.67643455,668.61,668.0,2.55]
[1752161438490,1.67643455,668.62,668.0,2.55]
[1752161440690,1.67643455,668.6,668.0,4.78657181]
[1752161442388,1.67643455,668.61,668.0,4.78657181]
[1752161442592,1.67643455,668.6,668.0,4.78657181]
[1752161443293,1.67643455,668.6,668.0,2.55]
[1752161443791,1.67643455,668.6,667.99,2.23657181]
[1752161444195,1.67643455,668.6,668.0,2.23657181]
[1752161445996,1.67643455,668.59,668.04,2.23657181]
[1752161446798,1.67643455,668.59,668.05,1.938]
[1752161447296,1.67643455,668.59,668.05,4.17457181]
[1752161448092,1.67643455,668.6,668.05,4.17457181]
[1752161449499,1.67643455,668.65,668.05,1.938]
[1752161455101,0.26030077,669.0,668.06,2.23657181]
[1752161455102,1.67643455,668.59,668.06,2.23657181]
[1752161455702,1.67643455,668.63,668.05,1.938]
[1752161459900,1.67643455,668.64,668.05,1.938]
[1752161460102,1.67643455,668.65,668.05,1.938]
[1752161460705,1.67643455,668.66,668.05,1.938]
[1752161462308,2.22783529,668.84,668.05,1.938]
[1752161462513,1.67887353,668.64,668.05,1.938]
[1752161463011,1.67887353,668.74,668.05,1.938]
[1752161463306,1.67887353,668.75,668.05,1.938]
[1752161463813,1.67887353,668.73,668.05,1.938]
[1752161464009,1.67887353,668.72,668.05,1.938]
[1752161464214,1.67887353,668.73,668.05,1.938]
[1752161467615,1.67887353,668.74,668.05,1.938]
[1752161468016,2.22783529,668.9,668.05,1.938]
[1752161468216,1.67828603,668.74,668.05,1.938]
[1752161468412,1.67828603,668.73,668.05,1.938]
[1752161469212,1.67828603,668.74,668.05,1.938]
[1752161469818,1.67828603,668.73,668.05,1.938]
[1752161470216,1.67828603,668.72,668.05,1.938]
[1752161470416,1.67828603,668.71,668.05,1.938]
[1752161470916,1.67828603,668.7,668.05,1.938]
[1752161471118,1.67828603,668.71,668.05,1.938]
[1752161471718,1.67828603,668.72,668.05,1.938]
[1752161473416,1.67828603,668.67,668.05,1.938]
[1752161474420,1.67828603,668.66,668.05,1.938]
[1752161481225,1.67828603,668.65,668.05,1.938]
[1752161481629,1.67828603,668.64,668.05,1.938]
[1752161482030,1.67828603,668.63,668.05,1.938]
[1752161482329,1.67779046,668.63,668.05,1.938]
[1752161485233,1.67779046,668.62,668.05,1.938]
[1752161488540,1.67779046,668.63,668.05,1.938]
[1752161488941,1.67779046,668.61,668.05,1.938]
[1752161489742,1.67779046,668.6,668.05,1.938]
[1752161492642,1.67779046,668.64,668.05,1.938]
[1752161492840,1.67779046,668.6,668.05,1.938]
[1752161496743,1.67779046,668.61,668.05,1.938]
[1752161499247,1.67779046,668.62,668.05,1.938]
[1752161501552,1.67779046,668.6,668.05,1.938]
[1752161501952,1.67779046,668.57,668.05,1.938]
[1752161502346,1.67779046,668.58,668.05,1.938]
[1752161502553,1.67779046,668.59,668.05,1.938]
[1752161503252,1.67779046,668.58,668.05,1.938]
[1752161503452,1.67779046,668.59,668.05,1.938]
[1752161505253,2.22783529,668.75,668.05,1.938]
[1752161505454,1.6765071,668.58,668.05,1.938]
[1752161506860,1.6765071,668.59,667.95,0.2602667]
[1752161509054,1.6765071,668.59,667.96,1.807]
[1752161512361,1.6765071,668.58,667.96,1.807]
[1752161512961,1.6765071,668.57,667.96,1.807]
[1752161513461,1.6765071,668.58,667.96,1.807]
[1752161513961,1.6765071,668.57,667.96,1.807]
[1752161522360,2.22783529,668.7,667.96,1.807]
[1752161522361,1.6765071,668.58,667.96,1.807]
[1752161524161,1.6765071,668.57,667.96,1.807]
[1752161526362,1.6765071,668.56,667.96,1.807]
[1752161527468,1.6765071,668.57,667.96,1.807]
[1752161529367,1.6765071,668.56,667.96,1.807]
[1752161530265,1.6765071,668.55,667.96,1.807]
[1752161531168,1.6765071,668.55,667.95,0.2602667]
[1752161532269,1.6765071,668.54,667.95,0.2602667]
[1752161532565,1.6765071,668.58,667.95,0.2602667]
[1752161533670,1.6765071,668.58,667.96,1.927]
[1752161533967,1.6765071,668.53,667.96,1.927]
[1752161534766,1.67757544,668.53,667.96,1.927]
[1752161535366,1.67757544,668.49,667.96,1.927]
[1752161536871,1.67757544,668.45,667.96,1.927]
[1752161537367,1.67757544,668.46,667.96,1.927]
[1752161539269,1.67757544,668.45,667.96,1.927]
[1752161540374,1.67757544,668.44,667.96,1.927]
[1752161542379,2.22783529,668.56,667.96,1.927]
[1752161542380,1.67757544,668.42,667.96,1.927]
[1752161544180,1.67757544,668.43,667.96,1.927]
[1752161544384,0.26024723,669.14,667.96,1.927]
[1752161544385,1.67757544,668.42,667.96,1.927]
[1752161545286,1.67757544,668.43,667.96,1.927]
[1752161545481,1.67757544,668.42,667.96,1.927]